[Event "European School-ch 2019"]
[Site "Mamaia"]
[Date "2019.06.04"]
[Round "5.30"]
[White "Korovko, Iakov"]
[Black "Zheng, Harry Z"]
[Result "0-1"]
[ECO "C68"]
[WhiteElo "1232"]
[BlackElo "1653"]
[Annotator "NA RC"]
[PlyCount "124"]
[EventDate "2019.05.31"]
[EventType "swiss"]
[EventCountry "ROU"]
[SourceTitle "playchess.com"]
[Source "ChessBase"]
[SourceQuality "1"]
[TimeControl "40/5400+30:1800+30"]

1. e4 {[%emt 0:00:29]} e5 {[%emt 0:00:00]} 2. Nf3 {[%emt 0:00:23]} Nc6 {[%emt 0:00:09]} 3. Bb5 {[%emt 0:00:34]} a6 {[%emt 0:00:41]} 4. Bxc6 {[%emt 0:00:34]} dxc6 {[%emt 0:00:31]} 5. O-O {[%emt 0:01:12]} Bg4 {[%emt 0:12:26]} 6. h3 {[%emt 0:01:12]} Bxf3 {[%emt 0:00:34]} 7. Qxf3 {[%emt 0:01:16]} Bc5 {[%emt 0:05:55]} 8. d3 {[%emt 0:01:44]} h6 {[%emt 0:01:54]} 9. Be3 {[%emt 0:08:22]} Bb6 {[%emt 0:02:02]} 10. Nd2 {[%emt 0:01:53]} Nf6 {[%emt 0:15:57]} 11. Bxb6 {[%emt 0:01:23]} cxb6 {[%emt 0:00:15]} 12. Qg3 {[%emt 0:01:44]} Qe7 {[%emt 0:08:37]} 13. Nc4 {[%emt 0:01:13]} Nd7 {[%emt 0:06:32]} 14. f4 {[%emt 0:02:12]} exf4 {[%emt 0:03:39]} 15. Rxf4 {[%emt 0:03:25]} b5 {[%emt 0:06:28]} 16. Qxg7 {[%emt 0:09:11]} O-O-O {[%emt 0:06:36]} 17. Rxf7 {[%emt 0:04:10]} Qc5+ {[%emt 0:01:52]} 18. Kh1 {[%emt 0:00:15]} Rdg8 {[%emt 0:01:58]} 19. b4 {[%emt 0:08:47]} Rxg7 {[%emt 0:14:23]} 20. bxc5 {[%emt 0:00:14]} Rxf7 {[%emt 0:00:08]} 21. Nd6+ {[%emt 0:00:52]} Kc7 {[%emt 0:00:10]} 22. Nxf7 {[%emt 0:00:14]} Rh7 {[%emt 0:00:07]} 23. Rf1 {[%emt 0:04:28]} Nxc5 {[%emt 0:01:21]} 24. Ne5 {[%emt 0:01:31]} Kb6 {[%emt 0:00:39]} 25. Rf7 {[%emt 0:01:16]} Rh8 {[%emt 0:00:19]} 26. Nd7+ {[%emt 0:00:28]} Nxd7 {[%emt 0:00:05]} 27. Rxd7 {[%emt 0:00:10]} Rf8 {[%emt 0:00:18]} 28. Kg1 {[%emt 0:00:51]} a5 {[%emt 0:02:04]} 29. g4 {[%emt 0:02:30]} Rf3 {[%emt 0:00:41]} 30. Kg2 {[%emt 0:00:40]} Re3 {[%emt 0:00:13]} 31. Rf7 {[%emt 0:00:11]} Re1 {[%emt 0:00:53]} 32. Rf6 {[%emt 0:02:07]} Ra1 {[%emt 0:00:24]} 33. Rxh6 {[%emt 0:00:36]} Rxa2 {[%emt 0:00:05]} 34. g5 {[%emt 0:15:00]} Rxc2+ {[%emt 0:00:07]} 35. Kf3 {[%emt 0:00:48]} Rd2 {[%emt 0:00:21]} 36. g6 {[%emt 0:00:38]} Rxd3+ {[%emt 0:00:08]} 37. Kf4 {[%emt 0:00:14]} Rd8 {[%emt 0:00:34]} 38. Kf5 {[%emt 0:05:42]} a4 {[%emt 0:01:11]} 39. g7 {[%emt 0:01:25]} Rg8 {[%emt 0:04:08]} 40. Kg6 {[%emt 0:00:00]} a3 {[%emt 0:00:00]} 41. Rh8 {[%emt 0:02:27]} Rxg7+ {[%emt 0:03:56]} 42. Kxg7 {[%emt 0:00:09]} Ka7 {[%emt 0:00:05]} 43. Rf8 {[%emt 0:04:23]} a2 {[%emt 0:00:14]} 44. Rf1 {[%emt 0:00:09]} b4 {[%emt 0:00:08]} 45. e5 {[%emt 0:01:27]} b3 {[%emt 0:00:19]} 46. Ra1 {[%emt 0:00:06]} Kb8 {[%emt 0:03:28]} 47. e6 {[%emt 0:01:02]} b2 {[%emt 0:00:07]} 48. Rxa2 {[%emt 0:00:16]} b1=Q {[%emt 0:00:07]} 49. e7 {[%emt 0:00:59]} Qe4 {[%emt 0:00:50]} 50. Kf8 {[%emt 0:00:45]} Qf5+ {[%emt 0:00:46]} 51. Kg7 {[%emt 0:00:53]} Qe6 {[%emt 0:00:27]} 52. Kf8 {[%emt 0:00:31]} Qf6+ {[%emt 0:00:10]} 53. Ke8 Kc7 {[%emt 0:00:14]} 54. Rd2 {[%emt 0:00:21]} Qf5 {[%emt 0:00:54]} 55. h4 {[%emt 0:00:35]} c5 {[%emt 0:00:44]} 56. Rh2 {[%emt 0:00:13]} c4 {[%emt 0:01:22]} 57. h5 {[%emt 0:00:05]} c3 {[%emt 0:00:30]} 58. h6 {[%emt 0:00:11]} Kd6 {[%emt 0:03:18]} 59. h7 {[%emt 0:02:53]} Qf6 {[%emt 0:03:28]} 60. Re2 {[%emt 0:03:21]} Qh8+ {[%emt 0:00:18]} 61. Kf7 {[%emt 0:00:06]} Qxh7+ {[%emt 0:00:22]} 62. Kf6 {[%emt 0:01:02]} Qh6+ {[%emt 0:02:09]} 0-1

[Event "European School-ch 2019"]
[Site "Mamaia"]
[Date "2019.06.04"]
[Round "5.31"]
[White "Kliashtornyi, Arkadii"]
[Black "Kumar, Sanjit S"]
[Result "1/2-1/2"]
[ECO "D02"]
[WhiteElo "1317"]
[BlackElo "1392"]
[Annotator "NA RC"]
[PlyCount "97"]
[EventDate "2019.05.31"]
[EventType "swiss"]
[EventCountry "ROU"]
[SourceTitle "playchess.com"]
[Source "ChessBase"]
[SourceQuality "1"]
[TimeControl "40/5400+30:1800+30"]

1. d4 {[%emt 0:00:00]} d5 {[%emt 0:00:00]} 2. Nf3 {[%emt 0:00:00]} Nf6 {[%emt 0:00:00]} 3. g3 {[%emt 0:00:00]} e6 {[%emt 0:00:00]} 4. Bg2 {[%emt 0:00:02]} c5 {[%emt 0:00:00]} 5. O-O {[%emt 0:00:58]} Be7 {[%emt 0:00:06]} 6. c4 {[%emt 0:00:45]} Nc6 {[%emt 0:00:20]} 7. cxd5 {[%emt 0:00:13]} exd5 {[%emt 0:00:07]} 8. dxc5 {[%emt 0:00:51]} Bxc5 {[%emt 0:00:49]} 9. Bg5 {[%emt 0:00:40]} d4 {[%emt 0:03:20]} 10. Nbd2 {[%emt 0:09:56]} O-O {[%emt 0:01:21]} 11. Ne4 {[%emt 0:03:08]} Be7 {[%emt 0:00:07]} 12. Nxf6+ {[%emt 0:01:25]} Bxf6 {[%emt 0:00:14]} 13. Bxf6 {[%emt 0:00:43]} Qxf6 {[%emt 0:00:13]} 14. Qd2 {[%emt 0:10:37]} Be6 {[%emt 0:03:11]} 15. a3 {[%emt 0:02:09]} Rad8 {[%emt 0:02:58]} 16. Qg5 {[%emt 0:06:33]} Qxg5 {[%emt 0:04:15]} 17. Nxg5 {[%emt 0:02:32]} Bd5 {[%emt 0:01:19]} 18. Bxd5 {[%emt 0:02:13]} Rxd5 {[%emt 0:00:12]} 19. Nf3 {[%emt 0:01:16]} d3 {[%emt 0:02:15]} 20. e3 {[%emt 0:08:56]} Rfd8 {[%emt 0:02:44]} 21. Nd2 {[%emt 0:02:17]} Kf8 {[%emt 0:08:33]} 22. Rac1 {[%emt 0:02:11]} Ke7 {[%emt 0:06:42]} 23. Rc4 {[%emt 0:05:25]} f6 {[%emt 0:01:58]} 24. Re4+ {[%emt 0:02:30]} Kf7 {[%emt 0:00:16]} 25. Rc4 {[%emt 0:01:21]} R8d7 {[%emt 0:03:36]} 26. Rcc1 {[%emt 0:05:51]} Rb5 {[%emt 0:01:53]} 27. Rb1 {[%emt 0:03:01]} Rc5 {[%emt 0:00:56]} 28. Rbc1 {[%emt 0:01:03]} Rc2 {[%emt 0:00:56]} 29. Rfd1 {[%emt 0:17:44]} Ne5 {[%emt 0:01:32]} 30. Kg2 {[%emt 0:01:03]} Rdc7 {[%emt 0:00:52]} 31. Rb1 {[%emt 0:01:46]} R7c6 {[%emt 0:04:00]} 32. h3 {[%emt 0:01:47]} Rb6 {[%emt 0:00:45]} 33. b3 {[%emt 0:00:29]} Rd6 {[%emt 0:03:09]} 34. Rbc1 {[%emt 0:01:04]} Rdc6 {[%emt 0:01:11]} 35. Rb1 {[%emt 0:00:05]} Rc7 {[%emt 0:02:40]} 36. f4 {[%emt 0:01:21]} Nd7 {[%emt 0:00:06]} 37. Kg1 {[%emt 0:00:39]} Ra2 {[%emt 0:01:46]} 38. Nc4 {[%emt 0:00:36]} Nc5 {[%emt 0:10:55]} 39. Nd6+ {[%emt 0:01:29]} Ke6 {[%emt 0:01:35]} 40. Nb5 {[%emt 0:00:00]} Rd7 {[%emt 0:00:00]} 41. Nd4+ {[%emt 0:01:57]} Kf7 {[%emt 0:02:49]} 42. b4 {[%emt 0:03:59]} Ne4 {[%emt 0:01:03]} 43. Rxd3 {[%emt 0:02:46]} Nxg3 {[%emt 0:01:06]} 44. Rbd1 {[%emt 0:03:52]} Re7 {[%emt 0:01:52]} 45. Nb5 {[%emt 0:05:19]} Ne2+ {[%emt 0:00:36]} 46. Kh1 {[%emt 0:00:42]} Ng3+ {[%emt 0:02:01]} 47. Kg1 {[%emt 0:00:37]} Ne2+ {[%emt 0:03:31]} 48. Kh1 {[%emt 0:01:26]} Ng3+ {[%emt 0:00:33]} 49. Kg1 {[%emt 0:00:12]} 1/2-1/2

[Event "European School-ch 2019"]
[Site "Mamaia"]
[Date "2019.06.04"]
[Round "5.32"]
[White "Utlu, Mustafa Ali"]
[Black "Ochedzan, Filip"]
[Result "0-1"]
[ECO "D35"]
[WhiteElo "1148"]
[BlackElo "1298"]
[Annotator "NA RC"]
[PlyCount "92"]
[EventDate "2019.05.31"]
[EventType "swiss"]
[EventCountry "ROU"]
[SourceTitle "playchess.com"]
[Source "ChessBase"]
[SourceQuality "1"]
[TimeControl "40/5400+30:1800+30"]

1. d4 {[%emt 0:00:00]} d5 {[%emt 0:00:00]} 2. c4 {[%emt 0:00:07]} e6 {[%emt 0:00:39]} 3. Nc3 {[%emt 0:00:17]} Nf6 {[%emt 0:00:31]} 4. cxd5 {[%emt 0:00:49]} exd5 {[%emt 0:00:09]} 5. Bg5 {[%emt 0:00:48]} Be7 {[%emt 0:01:01]} 6. e3 {[%emt 0:00:43]} Nc6 {[%emt 0:03:18]} 7. Bxf6 {[%emt 0:04:25]} Bxf6 {[%emt 0:00:19]} 8. Qb3 {[%emt 0:00:16]} Ne7 {[%emt 0:01:30]} 9. Bd3 {[%emt 0:01:05]} O-O {[%emt 0:02:00]} 10. Rc1 {[%emt 0:01:39]} c6 {[%emt 0:05:01]} 11. Nge2 {[%emt 0:00:53]} Re8 {[%emt 0:05:30]} 12. Qc2 {[%emt 0:03:40]} h6 {[%emt 0:01:15]} 13. Ng3 {[%emt 0:02:54]} Bd7 {[%emt 0:05:31]} 14. Nh5 {[%emt 0:00:52]} Nc8 {[%emt 0:02:13]} 15. Nxf6+ {[%emt 0:00:36]} Qxf6 {[%emt 0:00:21]} 16. Qe2 {[%emt 0:00:51]} Nd6 {[%emt 0:01:31]} 17. Qf3 {[%emt 0:00:46]} Qxd4 {[%emt 0:03:13]} 18. Rd1 {[%emt 0:04:35]} Qe5 {[%emt 0:02:22]} 19. O-O {[%emt 0:01:19]} Qg5 {[%emt 0:05:07]} 20. Na4 {[%emt 0:01:41]} Bg4 {[%emt 0:01:04]} 21. Qg3 {[%emt 0:00:30]} Bxd1 {[%emt 0:00:32]} 22. Qxg5 {[%emt 0:00:26]} hxg5 {[%emt 0:00:14]} 23. Rxd1 {[%emt 0:00:08]} Re7 {[%emt 0:01:19]} 24. Nc5 {[%emt 0:00:49]} Rae8 {[%emt 0:01:10]} 25. f3 {[%emt 0:05:57]} Rxe3 {[%emt 0:01:45]} 26. Kf2 {[%emt 0:00:38]} b6 {[%emt 0:02:55]} 27. Be4 {[%emt 0:01:43]} bxc5 {[%emt 0:01:51]} 28. Kxe3 {[%emt 0:00:07]} Nc4+ {[%emt 0:00:29]} 29. Kf2 {[%emt 0:00:22]} dxe4 {[%emt 0:00:51]} 30. fxe4 {[%emt 0:00:12]} Rxe4 {[%emt 0:00:32]} 31. b3 {[%emt 0:00:11]} Ne5 {[%emt 0:01:27]} 32. Rd8+ {[%emt 0:01:28]} Kh7 {[%emt 0:00:14]} 33. Ra8 {[%emt 0:00:14]} Ng4+ {[%emt 0:01:48]} 34. Kf3 {[%emt 0:01:51]} f5 {[%emt 0:01:21]} 35. g3 {[%emt 0:00:28]} Nxh2+ {[%emt 0:01:18]} 36. Kg2 {[%emt 0:00:59]} Re2+ {[%emt 0:01:09]} 37. Kg1 {[%emt 0:00:16]} Rxa2 {[%emt 0:00:20]} 38. Rb8 {[%emt 0:00:24]} Rb2 {[%emt 0:01:16]} 39. Ra8 {[%emt 0:00:10]} Nf3+ {[%emt 0:00:34]} 40. Kf1 {[%emt 0:00:00]} Rxb3 {[%emt 0:00:00]} 41. Rxa7 {[%emt 0:00:24]} c4 {[%emt 0:01:41]} 42. Rd7 {[%emt 0:00:21]} c3 {[%emt 0:00:40]} 43. Rd1 {[%emt 0:00:55]} c2 44. Rd6 {[%emt 0:00:28]} c1=Q+ {[%emt 0:00:30]} 45. Kg2 {[%emt 0:00:19]} Qg1+ {[%emt 0:00:19]} 46. Kh3 {[%emt 0:00:11]} Qh1# {[%emt 0:00:12]} 0-1

[Event "European School-ch 2019"]
[Site "Mamaia"]
[Date "2019.06.04"]
[Round "5.33"]
[White "Yasmo, Daniil"]
[Black "Celik, Ali Alper"]
[Result "0-1"]
[ECO "A48"]
[WhiteElo "1424"]
[BlackElo "1169"]
[Annotator "NA RC"]
[PlyCount "138"]
[EventDate "2019.05.31"]
[EventType "swiss"]
[EventCountry "ROU"]
[SourceTitle "playchess.com"]
[Source "ChessBase"]
[SourceQuality "1"]
[TimeControl "40/5400+30:1800+30"]

1. d4 {[%emt 0:00:00]} Nf6 {[%emt 0:00:00]} 2. Nf3 {[%emt 0:00:00]} g6 {[%emt 0:00:02]} 3. Nbd2 {[%emt 0:00:08]} d5 {[%emt 0:02:41]} 4. e3 {[%emt 0:00:42]} Bg7 {[%emt 0:01:42]} 5. Be2 {[%emt 0:01:19]} O-O {[%emt 0:04:03]} 6. O-O {[%emt 0:00:46]} c5 {[%emt 0:03:03]} 7. c3 {[%emt 0:00:38]} Nc6 {[%emt 0:05:41]} 8. dxc5 {[%emt 0:01:27]} Re8 {[%emt 0:10:32]} 9. Nd4 {[%emt 0:03:29]} e5 {[%emt 0:06:11]} 10. Nxc6 {[%emt 0:01:01]} bxc6 {[%emt 0:00:51]} 11. Qa4 {[%emt 0:07:46]} Qc7 {[%emt 0:07:55]} 12. Nb3 {[%emt 0:07:25]} Bf5 {[%emt 0:03:06]} 13. Na5 {[%emt 0:02:48]} Re6 {[%emt 0:03:07]} 14. f3 {[%emt 0:13:07]} e4 {[%emt 0:05:56]} 15. f4 {[%emt 0:02:01]} h5 {[%emt 0:05:17]} 16. Nb3 {[%emt 0:01:45]} Bg4 {[%emt 0:03:51]} 17. Nd4 {[%emt 0:03:31]} Bxe2 {[%emt 0:03:31]} 18. Nxe2 {[%emt 0:00:29]} Nd7 {[%emt 0:04:14]} 19. Nd4 {[%emt 0:01:36]} Bxd4 {[%emt 0:04:51]} 20. cxd4 {[%emt 0:00:37]} f5 {[%emt 0:01:45]} 21. Bd2 {[%emt 0:02:05]} Nf6 {[%emt 0:02:11]} 22. Rac1 {[%emt 0:01:47]} Qe7 {[%emt 0:05:33]} 23. Qd1 {[%emt 0:02:24]} Kh7 {[%emt 0:02:33]} 24. Be1 {[%emt 0:01:03]} Rg8 {[%emt 0:03:08]} 25. Bh4 {[%emt 0:00:37]} Qc7 {[%emt 0:02:06]} 26. Rc3 {[%emt 0:02:08]} Qb8 {[%emt 0:01:28]} 27. Qb3 {[%emt 0:00:34]} Qc7 {[%emt 0:00:26]} 28. Qa4 {[%emt 0:00:59]} Ng4 {[%emt 0:01:14]} 29. Bg5 {[%emt 0:01:39]} Nh6 {[%emt 0:00:59]} 30. Bxh6 {[%emt 0:00:36]} Kxh6 {[%emt 0:00:22]} 31. h4 {[%emt 0:00:29]} Qe7 {[%emt 0:02:07]} 32. g3 {[%emt 0:00:29]} Rg7 {[%emt 0:00:25]} 33. Ra3 {[%emt 0:01:42]} Qc7 {[%emt 0:00:45]} 34. Kh2 {[%emt 0:02:57]} Rf6 {[%emt 0:00:57]} 35. Qc2 {[%emt 0:00:37]} Re6 {[%emt 0:00:12]} 36. Rb1 {[%emt 0:00:28]} Rg8 {[%emt 0:00:40]} 37. b4 {[%emt 0:00:27]} Qb7 {[%emt 0:00:45]} 38. Qe2 {[%emt 0:00:52]} Ra8 {[%emt 0:00:59]} 39. Rab3 {[%emt 0:00:45]} Qb5 {[%emt 0:00:22]} 40. Qc2 {[%emt 0:00:00]} a5 {[%emt 0:00:00]} 41. bxa5 {[%emt 0:01:40]} Qxa5 {[%emt 0:01:17]} 42. R3b2 {[%emt 0:01:38]} Re7 {[%emt 0:01:11]} 43. Qd2 {[%emt 0:00:17]} Qxd2+ {[%emt 0:00:40]} 44. Rxd2 {[%emt 0:00:09]} Rea7 {[%emt 0:01:27]} 45. Rbb2 {[%emt 0:00:13]} Kg7 {[%emt 0:02:06]} 46. Kg2 {[%emt 0:00:09]} Kf6 {[%emt 0:00:19]} 47. Rb6 {[%emt 0:00:44]} Ra6 {[%emt 0:00:52]} 48. Rdb2 {[%emt 0:00:30]} Ke6 {[%emt 0:00:33]} 49. Rxa6 {[%emt 0:00:28]} Rxa6 {[%emt 0:00:19]} 50. Kf1 {[%emt 0:00:32]} Ra7 {[%emt 0:00:37]} 51. Ke1 {[%emt 0:00:14]} Kd7 {[%emt 0:00:45]} 52. Kd1 {[%emt 0:00:15]} Kc7 {[%emt 0:00:53]} 53. Kc1 {[%emt 0:00:16]} Ra3 {[%emt 0:00:40]} 54. Re2 {[%emt 0:00:31]} Kb7 {[%emt 0:00:35]} 55. Kb2 {[%emt 0:00:21]} Rd3 {[%emt 0:00:06]} 56. Kc1 {[%emt 0:00:31]} Ka7 {[%emt 0:00:52]} 57. Kc2 {[%emt 0:01:04]} Kb7 {[%emt 0:00:08]} 58. Re1 {[%emt 0:00:25]} Ka7 {[%emt 0:00:06]} 59. a4 {[%emt 0:01:35]} Ra3 {[%emt 0:04:04]} 60. Kb2 {[%emt 0:02:57]} Rxa4 {[%emt 0:00:37]} 61. Kc2 {[%emt 0:00:53]} Ra2+ {[%emt 0:00:18]} 62. Kc3 {[%emt 0:00:16]} Rg2 {[%emt 0:00:19]} 63. Rb1 {[%emt 0:00:04]} Rxg3 {[%emt 0:00:12]} 64. Rb6 {[%emt 0:00:03]} Rxe3+ {[%emt 0:00:30]} 65. Kc2 {[%emt 0:00:06]} Rd3 {[%emt 0:01:53]} 66. Rxc6 {[%emt 0:00:05]} Rxd4 {[%emt 0:00:53]} 67. Rxg6 {[%emt 0:00:05]} e3 {[%emt 0:00:33]} 68. Rb6 {[%emt 0:00:18]} e2 {[%emt 0:00:45]} 69. Rb1 {[%emt 0:00:05]} Rxf4 {[%emt 0:00:47]} 0-1

[Event "European School-ch 2019"]
[Site "Mamaia"]
[Date "2019.06.04"]
[Round "5.34"]
[White "Kumar, Soham"]
[Black "Bayramli, Rafael"]
[Result "1/2-1/2"]
[ECO "B78"]
[WhiteElo "1393"]
[BlackElo "1331"]
[Annotator "NA RC"]
[PlyCount "51"]
[EventDate "2019.05.31"]
[EventType "swiss"]
[EventCountry "ROU"]
[SourceTitle "playchess.com"]
[Source "ChessBase"]
[SourceQuality "1"]
[TimeControl "40/5400+30:1800+30"]

1. e4 {[%emt 0:00:00]} c5 {[%emt 0:00:00]} 2. Nf3 {[%emt 0:00:00]} d6 {[%emt 0:00:00]} 3. d4 {[%emt 0:00:00]} cxd4 {[%emt 0:00:00]} 4. Nxd4 {[%emt 0:00:00]} Nf6 {[%emt 0:00:00]} 5. Nc3 {[%emt 0:00:06]} g6 {[%emt 0:00:00]} 6. Be3 {[%emt 0:00:13]} Bg7 {[%emt 0:00:00]} 7. f3 {[%emt 0:00:13]} O-O {[%emt 0:00:00]} 8. Qd2 {[%emt 0:00:11]} Nc6 {[%emt 0:00:06]} 9. Bc4 {[%emt 0:01:44]} Bd7 {[%emt 0:00:05]} 10. O-O-O {[%emt 0:00:18]} Rb8 {[%emt 0:00:03]} 11. h4 {[%emt 0:02:19]} b5 {[%emt 0:00:25]} 12. Bb3 {[%emt 0:03:35]} Ne5 {[%emt 0:00:26]} 13. Bh6 {[%emt 0:08:55]} Nc4 {[%emt 0:01:00]} 14. Qg5 {[%emt 0:06:48]} Qa5 {[%emt 0:09:02]} 15. Bxg7 {[%emt 0:00:59]} Kxg7 {[%emt 0:04:47]} 16. h5 {[%emt 0:07:15]} b4 {[%emt 0:17:45]} 17. Nd5 {[%emt 0:02:58]} h6 {[%emt 0:02:17]} 18. Qh4 {[%emt 0:06:21]} g5 {[%emt 0:02:10]} 19. Qf2 {[%emt 0:05:06]} Nxd5 {[%emt 0:08:40]} 20. Nf5+ Bxf5 {[%emt 0:16:18]} 21. Rxd5 {[%emt 0:08:11]} Qb6 {[%emt 0:03:43]} 22. Qxb6 {[%emt 0:02:29]} Nxb6 {[%emt 0:01:42]} 23. Rxf5 {[%emt 0:02:44]} e5 {[%emt 0:00:29]} 24. g3 {[%emt 0:02:47]} Nc8 {[%emt 0:00:31]} 25. Rd1 {[%emt 0:01:23]} Rb6 {[%emt 0:05:09]} 26. Rd5 {[%emt 0:06:51]} 1/2-1/2

[Event "European School-ch 2019"]
[Site "Mamaia"]
[Date "2019.06.04"]
[Round "5.37"]
[White "Simsek, Suat Can"]
[Black "Damodaran, Patrick"]
[Result "1-0"]
[ECO "B21"]
[WhiteElo "1761"]
[BlackElo "1157"]
[Annotator "NA RC"]
[PlyCount "199"]
[EventDate "2019.05.31"]
[EventType "swiss"]
[EventCountry "ROU"]
[SourceTitle "playchess.com"]
[Source "ChessBase"]
[SourceQuality "1"]
[TimeControl "40/5400+30:1800+30"]

1. e4 {[%emt 0:00:00]} c5 {[%emt 0:01:39]} 2. d4 {[%emt 0:01:12]} cxd4 {[%emt 0:02:27]} 3. c3 {[%emt 0:03:10]} d3 {[%emt 0:01:52]} 4. c4 {[%emt 0:06:26]} Nc6 {[%emt 0:03:22]} 5. Bxd3 {[%emt 0:16:53]} Nf6 {[%emt 0:02:08]} 6. Nc3 {[%emt 0:02:53]} g6 {[%emt 0:01:04]} 7. Nf3 {[%emt 0:10:05]} d6 {[%emt 0:02:10]} 8. Bd2 {[%emt 0:01:13]} Bg7 {[%emt 0:02:53]} 9. Qc2 {[%emt 0:04:07]} O-O {[%emt 0:02:14]} 10. O-O {[%emt 0:00:49]} Bg4 {[%emt 0:02:25]} 11. Kh1 {[%emt 0:05:11]} Nb4 {[%emt 0:02:45]} 12. Qb1 {[%emt 0:01:17]} Rc8 {[%emt 0:05:03]} 13. Be2 {[%emt 0:00:57]} Bxf3 {[%emt 0:03:55]} 14. gxf3 {[%emt 0:02:44]} Nd7 {[%emt 0:01:46]} 15. a3 {[%emt 0:07:07]} Na6 {[%emt 0:00:35]} 16. b4 {[%emt 0:00:50]} Ne5 {[%emt 0:01:05]} 17. Qb3 {[%emt 0:02:15]} Qd7 {[%emt 0:01:46]} 18. Rg1 {[%emt 0:01:28]} Qe6 {[%emt 0:01:27]} 19. Rac1 {[%emt 0:06:42]} Nxc4 {[%emt 0:00:41]} 20. Bxc4 {[%emt 0:00:51]} Rxc4 {[%emt 0:01:16]} 21. Nd5 {[%emt 0:00:51]} Rxc1 {[%emt 0:01:01]} 22. Rxc1 {[%emt 0:00:22]} Re8 {[%emt 0:01:13]} 23. Qe3 {[%emt 0:03:02]} Qh3 {[%emt 0:02:31]} 24. Nf4 {[%emt 0:02:26]} Qd7 {[%emt 0:01:05]} 25. Qxa7 {[%emt 0:05:08]} Bb2 {[%emt 0:01:00]} 26. Rb1 {[%emt 0:03:37]} Bxa3 {[%emt 0:04:13]} 27. Qe3 {[%emt 0:00:54]} Bxb4 {[%emt 0:02:44]} 28. Bxb4 {[%emt 0:00:20]} Qb5 {[%emt 0:00:47]} 29. Qb3 {[%emt 0:00:45]} Qb6 {[%emt 0:02:42]} 30. Nd3 {[%emt 0:00:48]} Qd4 {[%emt 0:01:20]} 31. Qc3 {[%emt 0:01:20]} Qxc3 {[%emt 0:02:19]} 32. Bxc3 {[%emt 0:00:28]} Rc8 {[%emt 0:00:26]} 33. Be1 {[%emt 0:00:35]} Rc7 {[%emt 0:01:03]} 34. Ba5 {[%emt 0:00:11]} Rd7 {[%emt 0:00:48]} 35. Nb4 {[%emt 0:00:07]} Nc5 {[%emt 0:00:52]} 36. Nd5 {[%emt 0:00:13]} Kg7 {[%emt 0:01:20]} 37. Nb6 {[%emt 0:00:49]} Rc7 {[%emt 0:00:23]} 38. Na4 {[%emt 0:00:30]} Rd7 {[%emt 0:00:40]} 39. Nxc5 dxc5 {[%emt 0:00:35]} 40. Kg2 {[%emt 0:00:00]} c4 {[%emt 0:00:00]} 41. Rc1 {[%emt 0:00:30]} c3 {[%emt 0:01:54]} 42. Bxc3+ {[%emt 0:01:24]} f6 {[%emt 0:00:14]} 43. Ba5 {[%emt 0:00:41]} b5 {[%emt 0:00:20]} 44. Rc7 {[%emt 0:00:11]} Rxc7 {[%emt 0:00:57]} 45. Bxc7 {[%emt 0:01:26]} b4 {[%emt 0:00:09]} 46. Ba5 {[%emt 0:00:05]} b3 {[%emt 0:00:07]} 47. Bc3 {[%emt 0:00:04]} Kf7 {[%emt 0:00:31]} 48. Kf1 {[%emt 0:00:07]} Kg7 {[%emt 0:01:07]} 49. Ke2 {[%emt 0:00:10]} Kh6 {[%emt 0:00:00]} 50. Kd1 {[%emt 0:00:30]} Kh5 {[%emt 0:00:00]} 51. Bb4 {[%emt 0:00:08]} e6 {[%emt 0:00:46]} 52. Be7 {[%emt 0:02:17]} f5 {[%emt 0:00:30]} 53. Kc1 {[%emt 0:00:28]} fxe4 {[%emt 0:00:19]} 54. fxe4 {[%emt 0:00:12]} Kg4 {[%emt 0:00:15]} 55. Kb2 {[%emt 0:00:17]} Kf3 {[%emt 0:00:20]} 56. e5 {[%emt 0:00:14]} Kxf2 {[%emt 0:00:32]} 57. Kxb3 {[%emt 0:00:05]} Kf3 {[%emt 0:00:21]} 58. Kc4 {[%emt 0:00:13]} Kf4 {[%emt 0:00:35]} 59. Bf6 {[%emt 0:00:14]} Kf5 {[%emt 0:00:19]} 60. Kc5 {[%emt 0:00:46]} g5 {[%emt 0:00:35]} 61. Kd4 {[%emt 0:00:05]} Kf4 {[%emt 0:00:37]} 62. Kd3 {[%emt 0:00:18]} h5 {[%emt 0:00:28]} 63. Ke2 {[%emt 0:00:30]} h4 {[%emt 0:00:27]} 64. Kf2 {[%emt 0:00:34]} h3 {[%emt 0:00:22]} 65. Kg1 {[%emt 0:00:21]} g4 {[%emt 0:00:31]} 66. Kf2 {[%emt 0:02:26]} Ke4 {[%emt 0:00:46]} 67. Kg3 {[%emt 0:00:25]} Kf5 {[%emt 0:00:12]} 68. Be7 {[%emt 0:03:24]} Kxe5 {[%emt 0:00:12]} 69. Kxg4 {[%emt 0:00:11]} Ke4 {[%emt 0:00:26]} 70. Kxh3 {[%emt 0:00:32]} Kf3 {[%emt 0:00:16]} 71. Bh4 {[%emt 0:00:08]} e5 {[%emt 0:00:13]} 72. Be1 {[%emt 0:00:20]} e4 {[%emt 0:00:31]} 73. Ba5 {[%emt 0:00:15]} e3 {[%emt 0:00:16]} 74. Bb4 {[%emt 0:00:08]} e2 {[%emt 0:00:16]} 75. Ba5 {[%emt 0:00:05]} Kf4 {[%emt 0:00:31]} 76. Kg2 {[%emt 0:00:19]} Kg4 {[%emt 0:00:20]} 77. h3+ {[%emt 0:00:06]} Kh4 {[%emt 0:00:21]} 78. Kh2 {[%emt 0:00:15]} Kh5 {[%emt 0:00:16]} 79. Kg3 {[%emt 0:00:06]} Kg5 {[%emt 0:00:12]} 80. h4+ {[%emt 0:00:06]} Kh5 {[%emt 0:00:07]} 81. Kh3 {[%emt 0:00:10]} Kh6 {[%emt 0:00:31]} 82. Kg4 {[%emt 0:00:08]} Kg6 {[%emt 0:00:17]} 83. h5+ {[%emt 0:00:06]} Kh6 {[%emt 0:00:09]} 84. Kh4 {[%emt 0:00:02]} Kh7 {[%emt 0:00:12]} 85. Kg5 {[%emt 0:00:04]} Kg7 {[%emt 0:00:15]} 86. h6+ {[%emt 0:00:07]} Kh7 {[%emt 0:00:53]} 87. Kh5 {[%emt 0:00:04]} Kg8 {[%emt 0:00:24]} 88. Kg6 {[%emt 0:00:07]} Kh8 {[%emt 0:00:12]} 89. Bc3+ {[%emt 0:00:14]} Kg8 {[%emt 0:00:08]} 90. h7+ {[%emt 0:00:05]} Kf8 {[%emt 0:00:08]} 91. h8=Q+ {[%emt 0:00:08]} Ke7 {[%emt 0:00:11]} 92. Qf6+ {[%emt 0:00:10]} Kd7 {[%emt 0:00:13]} 93. Kf7 {[%emt 0:00:10]} Kc7 {[%emt 0:00:17]} 94. Qe6 {[%emt 0:00:11]} Kb7 {[%emt 0:00:10]} 95. Qd6 {[%emt 0:00:13]} e1=Q {[%emt 0:00:23]} 96. Bxe1 {[%emt 0:00:08]} Ka7 {[%emt 0:00:10]} 97. Ba5 {[%emt 0:00:17]} Ka8 {[%emt 0:00:15]} 98. Qd7 {[%emt 0:00:08]} Kb8 {[%emt 0:00:13]} 99. Bb6 {[%emt 0:00:15]} Ka8 {[%emt 0:00:08]} 100. Qc8# {[%emt 0:00:10]} 1-0